[Event "AUT Bundesliga Women 2021-22"]
[Site "Austria"]
[Date "2022.04.23"]
[Round "9.9"]
[White "Paehtz, Elisabeth"]
[Black "Frey, Alisa"]
[Result "1-0"]
[ECO "C77"]
[WhiteElo "2500"]
[BlackElo "2036"]
[Annotator "TA"]
[PlyCount "71"]
[EventDate "2021.11.06"]
[EventType "team-tourn"]
[EventCountry "AUT"]
[SourceTitle "playchess.com"]
[Source "ChessBase"]
[SourceQuality "1"]
[TimeControl "40/5400+30:1800+30"]

{[%evp 15,71,-14,-6,-20,0,-20,-14,-27,67,72,60,61,66,70,70,71,78,80,80,79,87,38,51,0,0,0,0,0,123,120,508,487,475,486,664,660,862,478,428,380,404,406,466,453,454,450,670,685,668,668,908,900,29983,29984,29984,29985,29995,29996]} 1. e4 {[%emt 0:00:02]} e5 {[%emt 0:00:05]} 2. Nf3 {[%emt 0:00:15]} Nc6 {[%emt 0:00:04]} 3. Bb5 {[%emt 0:00:03]} a6 {[%emt 0:00:04]} 4. Ba4 {[%emt 0:00:03]} Nf6 {[%emt 0:00:05]} 5. Qe2 {[%emt 0:00:16]} b5 {[%emt 0:00:17]} 6. Bb3 {[%emt 0:00:04]} Bc5 {[%emt 0:02:59]} 7. c3 {[%emt 0:01:16]} d6 {[%emt 0:02:09]} 8. d3 {[%emt 0:00:23]} O-O {[%emt 0:05:59] was the old line (8...h6).} 9. h3 {[%emt 0:00:24] C77: Ruy Lopez: 3...a6 4 Ba4 Nf6, unusual lines.} Be6 {[%emt 0:00:24]} 10. Bc2 {[%emt 0:00:06] [#]} d5 $146 {[%emt 0:02:47]} ({Predecessor:} 10... Re8 11. O-O h6 12. Rd1 Bb6 13. Nbd2 d5 14. Nf1 Qd7 15. Kh2 Rad8 16. Ng3 Qe7 {1-0 (36) Bortnyk,O (2610)-Sargissian,G (2672) Riadh 2017}) 11. Ng5 {[%emt 0:07:09] The position is equal.} Bd7 {[%emt 0:11:25]} (11... dxe4 $11 12. Nxe6 fxe6) 12. exd5 $1 $14 {[%emt 0:03:29]} Ne7 {[%emt 0:04:56]} 13. Ne4 $1 {[%emt 0:04:11]} Nxe4 {[%emt 0:04:06]} 14. dxe4 {[%emt 0:00:10]} f5 {[%emt 0:01:49]} 15. Nd2 {[%emt 0:02:42]} Bb6 {[%emt 0:03:17]} 16. O-O {[%emt 0:11:59]} Ng6 {[%emt 0:08:08]} 17. Nf3 {[%emt 0:03:45]} f4 {[%emt 0:05:52]} 18. b3 {[%emt 0:05:00]} (18. a4 $16) 18... Nh4 $1 {[%emt 0:03:57]} 19. Ba3 {[%emt 0:01:46]} ({White should play} 19. c4 $14) 19... Nxf3+ $11 {[%emt 0:00:51]} 20. Qxf3 {[%emt 0:00:03]} Rf6 {[%emt 0:00:22]} 21. c4 $36 {[%emt 0:02:14][%mdl 2048] And now c5 would win. White is more active.} Bd4 {[%emt 0:01:09]} (21... Rg6 $11 {keeps the balance.} 22. c5 Qh4 23. cxb6 Bxh3) 22. Rad1 $16 {[%emt 0:00:05][%cal Od1d4] Rxd4! is the strong threat.} Rg6 $2 {[%emt 0:00:38][%mdl 8192] [#] Black cannot hold the game after this.} (22... c5 $16 {is more resistant.}) 23. Rxd4 $1 $18 {[%emt 0:00:41][%mdl 512]} exd4 {[%emt 0:00:05]} 24. e5 {[%emt 0:00:42][%cal Be4e5,Be5e6][%mdl 32]} Rg5 {[%emt 0:03:30]} 25. e6 {[%emt 0:00:19]} Be8 {[%emt 0:00:16]} 26. Qxf4 {[%emt 0:00:30][%csl Ga3][%cal Rf4f8]} Qf6 {[%emt 0:05:33] Prevents Qf8+.} 27. Qxf6 {[%emt 0:01:44]} gxf6 {[%emt 0:00:04]} 28. Bb2 {[%emt 0:00:44]} Re5 {[%emt 0:01:52]} 29. Bxd4 {[%emt 0:01:57]} Re2 {[%emt 0:00:04]} 30. Rc1 {[%emt 0:00:45]} Bg6 {[%emt 0:00:58]} (30... bxc4 $142 31. bxc4 Bg6) 31. Bxg6 {[%emt 0:00:50]} hxg6 {[%emt 0:00:05]} 32. cxb5 {[%emt 0:00:52]} axb5 {[%emt 0:02:53]} 33. Rxc7 {[%emt 0:00:05]} Rexa2 {[%emt 0:00:27]} 34. Bxf6 {[%emt 0:00:44] White mates.} R2a6 {[%emt 0:03:23]} 35. Rg7+ {[%emt 0:00:20]} Kf8 {[%emt 0:00:13]} 36. Rh7 {[%emt 0:00:25] Weighted Error Value: White=0.28 (precise) /Black=0.82} 1-0

[Event "AUT Bundesliga Women 2021-22"]
[Site "Austria"]
[Date "2022.04.23"]
[Round "9.10"]
[White "Zechner, Andrea"]
[Black "Unuk, Laura"]
[Result "0-1"]
[ECO "E46"]
[WhiteElo "1851"]
[BlackElo "2356"]
[Annotator "TA"]
[PlyCount "94"]
[EventDate "2021.11.06"]
[EventType "team-tourn"]
[EventCountry "AUT"]
[SourceTitle "playchess.com"]
[Source "ChessBase"]
[SourceQuality "1"]
[TimeControl "40/5400+30:1800+30"]

{[%evp 12,93,8,-4,0,-8,14,5,22,0,0,0,6,0,0,0,0,0,100,104,100,103,90,91,102,83,86,80,80,87,92,90,79,81,83,80,108,110,108,7,34,16,22,-59,-20,-10,-7,-14,0,-29,-25,-15,-15,-23,-20,-66,-56,-58,-8,-29,-13,-87,-82,-109,-118,-345,-257,-260,-245,-239,-254,-239,-239,-435,-425,-910,-897,-864,-873,-1125,-1125,-29979,-29980,-29999]} 1. d4 {[%emt 0:00:02]} Nf6 {[%emt 0:00:08]} 2. c4 {[%emt 0:00:06]} e6 {[%emt 0:00:14]} 3. Nc3 {[%emt 0:00:11]} Bb4 {[%emt 0:01:02]} 4. e3 {[%emt 0:00:39]} O-O {[%emt 0:00:09]} 5. Nge2 {[%emt 0:00:40]} d5 {[%emt 0:00:15]} 6. a3 {[%emt 0:00:29]} Be7 {[%emt 0:00:42]} 7. Ng3 {[%emt 0:08:14]} c6 {[%emt 0:03:08] E46: Nimzo-Indian: Rubinstein: 4 e3 0-0 5 Ne2 without early Bd3.} 8. Bd3 {[%emt 0:02:24]} Re8 {[%emt 0:03:40]} 9. O-O {[%emt 0:02:34]} Nbd7 {[%emt 0:06:12][%cal Bb8d7,Bd7e5,Be5c6,Bc6d4,Bd4b3][%mdl 32] [#] The position is equal.} 10. Re1 $146 {[%emt 0:12:24]} ({Predecessor:} 10. Bd2 e5 11. cxd5 cxd5 12. Qb3 e4 13. Bb5 a6 14. Bxd7 Qxd7 15. Na4 Rb8 16. Nb6 {½-½ (31) Popov,V (2589)-Iotov,V (2491) Dresden 2007}) 10... e5 {[%emt 0:08:10]} 11. cxd5 {[%emt 0:10:11]} cxd5 {[%emt 0:00:35]} 12. dxe5 {[%emt 0:04:59]} Nxe5 {[%emt 0:00:06]} 13. Be2 {[%emt 0:18:03]} Be6 {[%emt 0:09:35]} 14. Nb5 {[%emt 0:07:23]} Qb6 {[%emt 0:01:31]} (14... a6 $11 {remains equal.} 15. Nd4 Bd7) 15. Qd4 $1 $16 {[%emt 0:04:36]} Qxd4 {[%emt 0:06:19]} 16. exd4 {[%emt 0:03:17]} Nc6 {[%emt 0:00:15]} 17. Nc7 {[%emt 0:00:14][%csl LRa8,LRe8]} Nxd4 {[%emt 0:00:11]} 18. Nxe8 {[%emt 0:03:12]} Nxe8 {[%emt 0:02:05][%cal Bf6e8,Be8d6,Bd6c4][%mdl 32]} 19. Bd3 {[%emt 0:04:35] Against Nc2} Nb3 {[%emt 0:03:17]} 20. Rb1 {[%emt 0:00:55]} Nd6 {[%emt 0:02:46]} 21. Bf4 {[%emt 0:02:05]} Nc5 {[%emt 0:04:37]} 22. Bc2 {[%emt 0:03:48]} Nc4 {[%emt 0:00:33]} 23. Bc1 {[%emt 0:04:24]} Rd8 {[%emt 0:05:56] [#]} 24. b3 $1 {[%emt 0:01:02]} Nb6 {[%emt 0:01:33]} 25. Rd1 {[%emt 0:01:35]} (25. Nf5 $16 Bf6 26. Be3) 25... d4 $11 {[%emt 0:01:40][%cal Bd5d4,Bd4d3][%mdl 32]} 26. b4 {[%emt 0:03:19]} Nca4 {[%emt 0:01:12]} (26... d3 $2 27. bxc5 dxc2 28. Rxd8+ Bxd8 29. Rb2 $18) 27. Bb2 {[%emt 0:00:59]} ({Don't play} 27. Nf5 Bf6 28. Bd2 {[#]} Nc4 $1 29. Nxg7 Kxg7 30. Bxa4 d3 $17) (27. Bd2 $11) 27... Nxb2 {[%emt 0:00:30]} 28. Rxb2 {[%emt 0:00:03]} Nc4 {[%emt 0:00:54][%csl LRa3,LRb2]} 29. Rb3 {[%emt 0:01:06]} Ne5 {[%emt 0:01:26]} 30. Rb2 {[%emt 0:00:18]} d3 {[%emt 0:04:36] Strongly threatening ...Nc4.} 31. Bb3 {[%emt 0:01:12]} Nc4 $36 {[%emt 0:01:18][%mdl 2048] Black fights for an advantage.} 32. Bxc4 {[%emt 0:00:10]} Bxc4 {[%emt 0:00:03]} 33. Ne4 {[%emt 0:00:54]} (33. Nf1 $11) 33... f5 $1 $15 {[%emt 0:02:50][%mdl 1024] Black has compensation.} 34. Nd2 {[%emt 0:00:32]} b5 {[%emt 0:00:39]} ({Black should play} 34... Bb5 $15) 35. Rbb1 $11 {[%emt 0:00:30]} Bf6 {[%emt 0:00:44]} 36. Nf1 {[%emt 0:00:32]} (36. Rbc1 $11 Bb2 37. Rxc4 bxc4 38. Nxc4) 36... Re8 $17 {[%emt 0:09:35] 0x0.00299f40ae99dp-1022s more active pieces.} 37. Nd2 {[%emt 0:00:49]} Re2 {[%emt 0:00:59] Threatens to win with ...Bd4.} 38. a4 $2 {[%emt 0:00:15] Loses the game.} (38. Rbc1 $17 Bb2 39. Rxc4 bxc4 40. Nxc4) 38... Bd4 $19 {[%emt 0:05:25]} 39. axb5 {[%emt 0:00:23]} Bxb5 {[%emt 0:00:18] A strong pair of Bishops.} 40. Nf3 {[%emt 0:00:42]} Bxf2+ {[%emt 0:00:31]} 41. Kh1 {[%emt 0:07:58]} Be3 {[%emt 0:04:09] Prevents Rbc1. ...g5 is the strong threat.} 42. h3 $2 {[%emt 0:12:58]} (42. h4) 42... g5 {[%emt 0:01:30][%cal Bg7g5,Bg5g4][%mdl 32]} 43. Kh2 {[%emt 0:08:41]} (43. Re1 $142) 43... g4 {[%emt 0:01:31]} 44. Ng1 {[%emt 0:00:40]} Bf4+ {[%emt 0:02:26]} 45. Kh1 {[%emt 0:00:06]} Rf2 {[%emt 0:00:53] ( -> ...Bc6)} 46. Ra1 {[%emt 0:01:17]} Bc6 {[%emt 0:00:24][%csl Gf2][%cal Rc6g2]} 47. Rxd3 {[%emt 0:02:00]} Bxg2# {[%emt 0:00:06] Weighted Error Value: White=0.47/Black=0.10 (very precise)} 0-1

[Event "AUT Bundesliga Women 2021-22"]
[Site "Austria"]
[Date "2022.04.23"]
[Round "9.11"]
[White "Imnadze, Nato"]
[Black "Mattersberger, Melanie"]
[Result "1-0"]
[ECO "C87"]
[WhiteElo "2266"]
[BlackElo "1763"]
[Annotator "TA"]
[PlyCount "53"]
[EventDate "2021.11.06"]
[EventType "team-tourn"]
[EventCountry "AUT"]
[SourceTitle "playchess.com"]
[Source "ChessBase"]
[SourceQuality "1"]
[TimeControl "40/5400+30:1800+30"]

{[%evp 20,53,45,34,56,49,78,70,83,78,93,77,73,87,144,136,225,236,237,253,237,228,249,250,284,272,270,263,262,267,413,412,797,789,1004,1000]} 1. e4 {[%emt 0:00:04]} e5 {[%emt 0:00:05]} 2. Nf3 {[%emt 0:00:33]} Nc6 {[%emt 0:00:04]} 3. Bb5 {[%emt 0:00:05]} a6 {[%emt 0:00:05]} 4. Ba4 {[%emt 0:00:05]} Nf6 {[%emt 0:00:07]} 5. O-O {[%emt 0:01:39]} Be7 {[%emt 0:00:21]} 6. Re1 {[%emt 0:01:07]} d6 {[%emt 0:00:05]} 7. c3 {[%emt 0:00:15]} Bg4 {[%emt 0:00:06]} 8. d3 {[%emt 0:01:21]} b5 {[%emt 0:00:07]} 9. Bc2 {[%emt 0:03:31]} O-O {[%emt 0:02:07]} 10. h3 {[%emt 0:00:35]} Bh5 {[%emt 0:00:25]} 11. Nbd2 {[%emt 0:00:04][%cal Bb1d2,Bd2f1,Bf1g3][%mdl 32]} Re8 {[%emt 0:04:08] C77: Ruy Lopez: 3...a6 4 Ba4 Nf6, unusual lines.} 12. Nf1 {[%emt 0:00:33]} h6 {[%emt 0:01:07]} 13. Ng3 {[%emt 0:15:27]} Bg6 $1 {[%emt 0:07:10] White is slightly better.} 14. Nh4 {[%emt 0:03:51]} Bh7 {[%emt 0:05:50][%cal Of6e4]} 15. Nhf5 {[%emt 0:00:41]} Bf8 {[%emt 0:00:40]} 16. Qf3 {[%emt 0:01:07] White is more active.} d5 {[%emt 0:12:53]} (16... Nb8 $142) 17. exd5 $16 {[%emt 0:06:54]} Qxd5 {[%emt 0:02:48] [#]} (17... Na5 $16 18. Ne3 Nb7) 18. Nxh6+ $1 $18 {[%emt 0:02:15][%mdl 512]} gxh6 {[%emt 0:03:57]} 19. Qxf6 {[%emt 0:00:14] [#]} Re6 $146 {[%emt 0:01:07]} ({Predecessor:} 19... Bg7 20. Qh4 Bxd3 21. Bxd3 Qxd3 22. Bxh6 Bxh6 23. Qxh6 Re6 24. Qh5 Ne7 25. Qg5+ Qg6 26. Rxe5 Nc6 27. Qxg6+ Rxg6 28. Rc5 Rd8 29. Ne4 Kg7 30. Re1 {1-0 (30) Barroso Napoles,A (2044)-Mandina Verdecia,Y (1833) Havana 2010}) 20. Qh4 {[%emt 0:03:07]} Bxd3 {[%emt 0:07:37]} 21. Bb3 {[%emt 0:04:32]} Bc4 {[%emt 0:01:27] [#]} 22. Rd1 $1 {[%emt 0:02:56]} Bxb3 {[%emt 0:02:40]} 23. Rxd5 {[%emt 0:00:33]} Bxd5 {[%emt 0:00:05]} 24. Nf5 {[%emt 0:04:18]} Kh7 {[%emt 0:00:37]} (24... Rg6 $142) 25. Ne3 {[%emt 0:01:23]} Rd8 {[%emt 0:02:54]} (25... Bc4 $142 26. Nxc4 bxc4 27. Qxc4 Rd8) 26. Nxd5 {[%emt 0:00:10]} Rxd5 {[%emt 0:00:06]} 27. Qe4+ {[%emt 0:00:03] Black did not feel at home in the position after the opening.  Weighted Error Value: White=0.00 (flawless) /Black=0.41} 1-0

[Event "AUT Bundesliga Women 2021-22"]
[Site "Austria"]
[Date "2022.04.23"]
[Round "9.12"]
[White "Majkovski, Sarah"]
[Black "Trippold, Denise"]
[Result "0-1"]
[ECO "B48"]
[WhiteElo "1652"]
[BlackElo "2068"]
[Annotator "TA"]
[PlyCount "80"]
[EventDate "2021.11.06"]
[EventType "team-tourn"]
[EventCountry "AUT"]
[SourceTitle "playchess.com"]
[Source "ChessBase"]
[SourceQuality "1"]
[TimeControl "40/5400+30:1800+30"]

{[%evp 14,80,16,6,33,32,38,21,25,19,33,0,0,-14,0,0,0,-18,-15,-32,-40,-23,-14,-57,-50,-80,-27,-132,-135,-184,-164,-227,-218,-369,-366,-753,-566,-555,-560,-507,-227,-2623,-2376,-1968,-1789,-1704,-1545,-1463,-144,-132,-120,-29985,-29986,-29984,-29985,-29987,-29988,-29988,-29989,-29990,-29991,-29991,-29990,-29990,-29991,-29991,-29992,-29992,-29993]} 1. e4 {[%emt 0:00:02]} c5 {[%emt 0:00:05]} 2. Nf3 {[%emt 0:00:05]} e6 {[%emt 0:00:05]} 3. d4 {[%emt 0:00:25]} cxd4 {[%emt 0:00:05]} 4. Nxd4 {[%emt 0:00:04]} Nc6 {[%emt 0:00:05]} 5. Nc3 {[%emt 0:00:11]} Qc7 {[%emt 0:00:06]} 6. Be3 {[%emt 0:00:11]} a6 {[%emt 0:00:05]} 7. f3 {[%emt 0:00:10] 7.g4 is a critical line.} Nf6 {[%emt 0:03:35]} 8. Qd2 {[%emt 0:00:43]} Be7 {[%emt 0:00:57] B48: Sicilian: Taimanov: 5 Nc3 Qc7 6 Be3 a6 without Be2.} 9. O-O-O {[%emt 0:00:42]} b5 {[%emt 0:02:28]} 10. Nxc6 {[%emt 0:00:25]} dxc6 {[%emt 0:00:33] The position is equal.} 11. g4 {[%emt 0:00:19]} e5 {[%emt 0:02:21]} 12. g5 {[%emt 0:02:08]} (12. h4 $14) 12... Nh5 $11 {[%emt 0:00:42]} 13. Qf2 {[%emt 0:01:26]} O-O {[%emt 0:10:18]} 14. h4 {[%emt 0:02:01]} Be6 {[%emt 0:31:09]} 15. Bb6 {[%emt 0:41:43]} Qb7 {[%emt 0:02:24]} 16. Bh3 {[%emt 0:06:07]} Bxh3 {[%emt 0:12:57]} 17. Rxh3 {[%emt 0:00:41] [#]} a5 $146 {[%emt 0:00:43][%cal Ba6a5,Ba5a4][%mdl 32]} ({Predecessor:} 17... Nf4 18. Rh2 a5 19. Rd2 Bb4 20. Bc5 Bxc3 21. bxc3 b4 22. c4 a4 23. Bxf8 b3 24. cxb3 axb3 {1-0 (31) Szalanczy,E (2114)-Nemeth,Z (1989) Budapest 2020}) 18. Rh2 {[%emt 0:04:15]} a4 {[%emt 0:02:08] White must now prevent ...b4.} 19. Bc5 {[%emt 0:01:40]} b4 {[%emt 0:00:49]} ({Better is} 19... Nf4 $17) 20. Nb1 {[%emt 0:05:14]} (20. Ne2 $11) 20... Nf4 $17 {[%emt 0:08:07]} 21. Bxe7 {[%emt 0:01:56]} (21. Be3 $17) 21... Qxe7 $19 {[%emt 0:00:01]} 22. Qg1 {[%emt 0:03:40]} (22. Qe3 {was necessary.}) 22... c5 {[%emt 0:04:42][%cal Bc6c5,Bc5c4][%mdl 32]} 23. Qg4 $2 {[%emt 0:08:39]} (23. Nd2) 23... c4 {[%emt 0:04:08]} 24. h5 $2 {[%emt 0:05:36]} (24. Qd7 Qc5 25. Qd6 Nd3+ 26. Rxd3 Qg1+ 27. Rd1 Qxh2 28. Qxb4) 24... b3 {[%emt 0:06:39]} 25. a3 {[%emt 0:04:01]} bxc2 {[%emt 0:00:04]} 26. Kxc2 {[%emt 0:01:11]} Qb7 {[%emt 0:01:42]} (26... Nd3 $142 27. Nd2 Rfd8) 27. Nd2 $2 {[%emt 0:06:01]} (27. Nc3 Nd3 28. Kb1) 27... Rab8 {[%emt 0:00:48][%csl Gb8][%cal Rb7b2] [#]} 28. Rb1 {[%emt 0:00:46]} c3 {[%emt 0:02:30]} 29. bxc3 {[%emt 0:00:49]} Qa6 {[%emt 0:00:03]} 30. Qd7 {[%emt 0:01:37] Against Qd3+} Rbd8 $2 {[%emt 0:01:48]} (30... Rxb1 $19 {and Black stays clearly on top.} 31. Kxb1 Rb8+ 32. Kc1 Qb6) 31. Qb5 $17 {[%emt 0:00:37] Prevents Rfb8.} Qd6 $36 {[%emt 0:00:02][%mdl 2048] Hoping for ...Rb8. Black is on the roll. Dancing on a razor blade.} 32. Nc4 $2 {[%emt 0:00:24][%mdl 8192] [#] Loses the game.} (32. g6 $17) 32... Qd3+ {[%emt 0:00:19] Black mates.} 33. Kb2 {[%emt 0:00:18]} Rb8 {[%emt 0:00:35]} 34. Ka1 {[%emt 0:02:08]} Rxb5 {[%emt 0:00:16]} 35. Rxb5 {[%emt 0:00:19]} Qxc4 {[%emt 0:00:12]} 36. Rhb2 {[%emt 0:00:37]} Qxc3 {[%emt 0:00:17]} 37. Kb1 {[%emt 0:00:29]} Nd3 {[%emt 0:02:48]} 38. Rc2 {[%emt 0:00:34]} Qe1+ {[%emt 0:00:19]} 39. Ka2 {[%emt 0:00:10]} Nc1+ {[%emt 0:00:14]} 40. Kb2 {[%emt 0:00:13]} Nb3 {[%emt 0:00:08] Weighted Error Value: White=0.65/Black=0.44} 0-1

[Event "AUT Bundesliga Women 2021-22"]
[Site "Austria"]
[Date "2022.04.23"]
[Round "9.13"]
[White "Stangl, Anita"]
[Black "Rozman, Monika"]
[Result "0-1"]
[ECO "B90"]
[WhiteElo "1991"]
[BlackElo "2115"]
[Annotator "TA"]
[PlyCount "74"]
[EventDate "2021.11.06"]
[EventType "team-tourn"]
[EventCountry "AUT"]
[SourceTitle "playchess.com"]
[Source "ChessBase"]
[SourceQuality "1"]
[TimeControl "40/5400+30:1800+30"]

{[%evp 15,74,0,0,-31,-21,-34,-35,-49,-30,-49,-44,-51,-52,-27,0,0,8,-130,0,-181,-206,-182,-108,-103,-101,-92,-79,-156,-141,-156,-91,-81,-60,-105,-103,-115,-116,-136,-142,-204,-193,-256,-260,-388,-221,-215,-224,-206,-146,-245,-136,-842,-826,-1663,-1702,-6825,-6417,-29973,-29972,-5497,-5406]} 1. e4 {[%emt 0:00:01]} c5 {[%emt 0:00:01]} 2. Nf3 {[%emt 0:00:06]} d6 {[%emt 0:00:03]} 3. d4 {[%emt 0:00:06]} cxd4 {[%emt 0:00:02]} 4. Nxd4 {[%emt 0:00:07]} Nf6 {[%emt 0:00:03]} 5. Nc3 {[%emt 0:00:27]} a6 {[%emt 0:00:03]} 6. Bc4 {[%emt 0:00:19]} e6 {[%emt 0:00:04]} 7. a3 {[%emt 0:00:50]} Be7 {[%emt 0:00:05]} 8. O-O {[%emt 0:03:44]} O-O {[%emt 0:00:05]} 9. Nde2 {[%emt 0:00:06] B86: Sicilian Scheveningen/Najdorf: 6 Bc4, without early ...b5.} b5 {[%emt 0:00:24]} 10. Ba2 {[%emt 0:00:12]} Bb7 {[%emt 0:00:05]} 11. Ng3 {[%emt 0:00:07] Black is slightly better.} Nbd7 {[%emt 0:00:30][%cal Bb8d7,Bd7b6,Bb6c4][%mdl 32]} 12. f4 {[%emt 0:01:54]} (12. Be3) 12... Rc8 {[%emt 0:00:13]} 13. Qe2 {[%emt 0:01:49]} Nb6 {[%emt 0:01:06]} 14. f5 {[%emt 0:06:20]} e5 {[%emt 0:00:59]} 15. Bg5 {[%emt 0:08:00]} Nc4 {[%emt 0:04:47] [#]} 16. Nd1 $146 {[%emt 0:12:06] [#]} (16. Bxc4 $11 {remains equal.} Rxc4 17. Rad1) ({Predecessor:} 16. Bxc4 Rxc4 17. Rad1 Rd4 18. Bxf6 Bxf6 19. Nh5 Qe7 20. Rd3 Kh8 21. Rh3 g6 22. Qf3 {0-1 (32) Brozyna,M (2173)-Belous,M (2299) Krakow 2019}) 16... Re8 {[%emt 0:16:46]} (16... Nxe4 $1 $17 {[%mdl 512]} 17. Bxe7 Nxg3 18. hxg3 Qxe7 19. Bxc4 bxc4) 17. c3 $2 {[%emt 0:05:43] [#]} (17. Bxf6 $11 {and White has nothing to worry.} Bxf6 18. Bxc4 Rxc4 19. Ne3) 17... Nxe4 $1 $19 {[%emt 0:04:01][%mdl 512]} 18. Bxe7 {[%emt 0:10:36]} Nxg3 {[%emt 0:01:24]} ({Black should play} 18... Qb6+ $19 19. Kh1 Nxg3+ 20. hxg3 Rxe7) 19. hxg3 $17 {[%emt 0:09:30]} Qxe7 {[%emt 0:01:52]} 20. f6 {[%emt 0:03:42]} gxf6 {[%emt 0:04:38] Black is more active.} 21. Ne3 {[%emt 0:02:17]} (21. Bxc4 $142 Rxc4 22. Ne3) 21... Nxe3 {[%emt 0:03:48]} 22. Qxe3 {[%emt 0:01:21] [#]} d5 {[%emt 0:03:35]} (22... Kh8 $142 $1 23. a4 b4 24. cxb4 Rg8) 23. Qh6 {[%emt 0:02:46]} Qf8 {[%emt 0:07:58]} 24. Qxf6 {[%emt 0:00:43]} Rc6 $36 {[%emt 0:01:39][%mdl 2048] Keeping White busy.} 25. Qf3 {[%emt 0:03:48]} e4 {[%emt 0:05:11]} ({But not} 25... Qc5+ $6 26. Rf2 Rc7 27. Rd1 $11) 26. Qf5 {[%emt 0:00:49]} Rg6 {[%emt 0:00:43]} 27. g4 {[%emt 0:02:13]} (27. Rae1 $17) 27... Rd8 $19 {[%emt 0:04:36]} 28. Rf4 {[%emt 0:05:01]} (28. Qe5 {is a better defense.}) 28... Bc8 {[%emt 0:01:33]} 29. Qh5 {[%emt 0:00:27]} (29. Qe5 $142) 29... Be6 {[%emt 0:01:20]} ({Stronger than} 29... Qd6 30. g3 $19) (29... Qc5+ $142 30. Rf2 Bxg4) 30. Rd1 {[%emt 0:00:29]} Rd7 {[%emt 0:04:04]} 31. Rd4 {[%emt 0:02:04][%cal Ra2d5]} Qh6 {[%emt 0:07:15]} 32. Qe5 {[%emt 0:01:38] [#]} (32. Qxh6 $17 Rxh6 33. a4) 32... Qg5 {[%emt 0:05:05]} ({Inferior is} 32... Rxg4 33. Rxg4+ Bxg4 34. Bxd5 $11) (32... Rg5 $1 $19 {[%cal Rg5e5]} 33. Qf6 Qxf6 34. Rxf6 Rxg4) 33. Qb8+ {[%emt 0:02:28][%mdl 8192] White does not recover from this.} (33. Qxg5 $17 Rxg5 34. Bb3) 33... Kg7 {[%emt 0:04:42]} 34. a4 {[%emt 0:07:10]} Bxg4 {[%emt 0:04:48] ( -> ...Be2)} 35. Rxg4 {[%emt 0:03:17]} Qxg4 {[%emt 0:00:37][%csl Gg6][%cal Rg4g2]} 36. Qe5+ {[%emt 0:00:37]} f6 {[%emt 0:00:56][%csl Gg6][%cal Rg4g2]} 37. Qh2 {[%emt 0:00:26]} Qe2 {[%emt 0:05:14] Weighted Error Value: White=1.21/Black=0.25 (precise)} 0-1